fUST/lending_fUST_20250502
["ID","MTS","AMOUNT","RATE_DAILY","PERIOD"]
[359594263,1746172517346,-157.02175172,0.00018,2]
[359594264,1746172525600,-180.33606607,0.00018,2]
[359594265,1746172534135,-38283.5846786,0.00018,2]
[359594266,1746172534157,-299.66883333,0.00018279,2]
[359594267,1746172534179,-311.66261429,0.00018443,2]
[359594268,1746172534202,-202.83619983,0.00018443,2]
[359594269,1746172534233,-500.0,0.00018444,2]
[359594270,1746172534263,-500.0,0.00018444,2]
[359594271,1746172534293,-500.0,0.00018444,2]
[359594272,1746172534323,-500.0,0.00018444,2]
[359594273,1746172534354,-500.0,0.00018444,2]
[359594274,1746172534387,-500.0,0.00018444,2]
[359594275,1746172534418,-500.0,0.00018444,2]
[359594276,1746172534449,-500.0,0.00018444,2]
[359594277,1746172534481,-500.0,0.00018444,2]
[359594278,1746172534512,-500.0,0.00018444,2]
[359594279,1746172534544,-500.0,0.00018444,2]
[359594280,1746172534575,-500.0,0.00018444,2]
[359594281,1746172534606,-500.0,0.00018444,2]
[359594282,1746172534636,-500.0,0.00018444,2]
[359594283,1746172534666,-500.0,0.00018444,2]
[359594284,1746172534698,-500.0,0.00018444,2]
[359594285,1746172534731,-500.0,0.00018444,2]
[359594286,1746172534762,-500.0,0.00018444,2]
[359594287,1746172534793,-500.0,0.00018444,2]
[359594288,1746172534822,-500.0,0.00018444,2]
[359594289,1746172534851,-547.87877747,0.00018444,2]
[359594290,1746172534882,-500.0,0.00018444,2]
[359594291,1746172534914,-500.0,0.00018444,2]
[359594292,1746172534944,-500.0,0.00018444,2]
[359594293,1746172534973,-500.0,0.00018444,2]
[359594294,1746172535004,-500.0,0.00018444,2]
[359594295,1746172535033,-500.0,0.00018444,2]
[359594296,1746172535061,-500.0,0.00018444,2]
[359594297,1746172535091,-500.0,0.00018444,2]
[359594298,1746172535122,-500.0,0.00018444,2]
[359594299,1746172535152,-500.0,0.00018444,2]
[359594300,1746172535182,-500.0,0.00018444,2]
[359594301,1746172535215,-500.0,0.00018444,2]
[359594302,1746172535244,-500.0,0.00018444,2]
[359594303,1746172535273,-500.0,0.00018444,2]
[359594304,1746172535305,-500.0,0.00018444,2]
[359594305,1746172535340,-500.0,0.00018444,2]
[359594306,1746172535370,-500.0,0.00018444,2]
[359594307,1746172535398,-500.0,0.00018444,2]
[359594308,1746172535427,-500.0,0.00018444,2]
[359594309,1746172535456,-500.0,0.00018444,2]
[359594310,1746172535484,-500.0,0.00018444,2]
[359594311,1746172535513,-500.0,0.00018444,2]
[359594312,1746172535546,-650.0,0.00018444,2]
[359594313,1746172535583,-500.0,0.00018444,2]
[359594314,1746172535619,-500.0,0.00018444,2]
[359594315,1746172535652,-350.0,0.00018444,2]
[359594316,1746172535674,-515.0,0.0001845,3]
[359594317,1746172535697,-5514.36889648,0.0001846,2]
[359594318,1746172536215,-160.0,0.00018,2]
[359594319,1746172537818,1398.27729512,0.000179,2]
[359594320,1746172569690,500.0,0.00017999,2]
[359594321,1746172570008,614.1528129,0.00017999,2]
[359594322,1746172575569,452.94682959,0.00017999,2]
[359594352,1746173432437,-774.67002048,0.00018279,2]
[359594353,1746173432447,-1223.49263323,0.00018279,2]
[359594354,1746173432456,-300.0,0.00018359,2]
[359594356,1746173432467,-337.34562893,0.00018359,2]
[359594372,1746173438508,-700.65437107,0.00018359,2]
[359594374,1746173438517,-968.64,0.0001836,3]
[359594375,1746173438527,-606.94,0.0001836,3]
[359594377,1746173438538,-303.47,0.0001836,3]
[359594379,1746173438547,-151.73,0.0001836,3]
[359594381,1746173438557,-455.22,0.0001836,3]
[359594383,1746173438567,-500.0,0.00018368,2]
[359594385,1746173438576,-500.0,0.00018368,2]
[359594386,1746173438586,-500.0,0.00018368,2]
[359594389,1746173438596,-500.0,0.00018368,2]
[359594392,1746173438606,-500.0,0.00018368,2]
[359594394,1746173438615,-500.0,0.00018368,2]
[359594396,1746173438625,-500.0,0.00018368,2]
[359594397,1746173438634,-500.0,0.00018368,2]
[359594399,1746173438644,-500.0,0.00018368,2]
[359594401,1746173438653,-500.0,0.00018368,2]
[359594402,1746173438663,-500.0,0.00018368,2]
[359594404,1746173438672,-500.0,0.00018368,2]
[359594406,1746173438682,-500.0,0.00018368,2]
[359594408,1746173438691,-525.85071629,0.00018368,2]
[359594410,1746173438701,-243.75586875,0.00018368,2]
[359594411,1746173438711,-500.0,0.00018368,2]
[359594413,1746173438721,-500.0,0.00018368,2]
[359594415,1746173438730,-399.97168267,0.00018368,2]
[359594417,1746173438739,-500.0,0.00018368,2]
[359594419,1746173438748,-500.0,0.00018368,2]
[359594420,1746173438758,-300.0,0.00018368,2]
[359594422,1746173438767,-500.0,0.00018368,2]
[359594424,1746173438777,-500.0,0.00018368,2]
[359594426,1746173438786,-159.10441307,0.00018368,2]
[359594428,1746173438796,-500.0,0.00018368,2]
[359594429,1746173438805,-604.78787774,0.00018368,2]
[359594431,1746173438815,-500.0,0.00018368,2]
[359594433,1746173438824,-500.0,0.00018368,2]
[359594435,1746173438833,-500.0,0.00018368,2]
[359594437,1746173438843,-500.0,0.00018368,2]
[359594438,1746173438852,-500.0,0.00018368,2]
[359594440,1746173438861,-500.0,0.00018368,2]
[359594442,1746173438871,-500.0,0.00018368,2]
[359594444,1746173438880,-500.0,0.00018368,2]
[359594445,1746173438889,-218.16383,0.00018369,2]
[359594447,1746173438899,-165915.22,0.0001837,2]
[359594449,1746173438909,-106436.78435024,0.00018379,2]
[359595063,1746173445415,-8180.5425418,0.00018379,2]
[359595071,1746173445484,-5274.80999998,0.00018379,2]
[359595073,1746173445497,-79138.58824586,0.00018379,2]
[359595075,1746173445507,-1000.0,0.00018449,2]
[359595077,1746173445516,-1000.0,0.00018449,2]
[359595079,1746173445526,-1000.0,0.00018449,2]
[359595080,1746173445536,-1000.0,0.00018449,2]
[359595082,1746173445547,-1000.0,0.00018449,2]
[359595084,1746173445556,-1000.0,0.00018449,2]
[359595086,1746173445566,-1000.0,0.00018449,2]
[359595088,1746173445575,-1000.0,0.00018449,2]
[359595090,1746173445585,-1000.0,0.00018449,2]
[359595092,1746173445594,-1000.0,0.00018449,2]
[359595094,1746173445604,-1000.0,0.00018449,2]
[359595096,1746173445613,-1000.0,0.00018449,2]
[359595098,1746173445622,-1000.0,0.00018449,2]
[359595100,1746173445631,-1000.0,0.00018449,2]
[359595102,1746173445641,-1000.0,0.00018449,2]
[359595104,1746173445651,-1000.0,0.00018449,2]
[359595106,1746173445660,-1000.0,0.00018449,2]
[359595108,1746173445669,-672.14176186,0.00018449,2]
[359595110,1746173445679,-774.67002044,0.00018478,2]
[359595111,1746173445688,-152.0,0.00018538,2]
[359595113,1746173445698,-151.0,0.0001856,2]
[359595115,1746173445708,-151.07044004,0.0001856,2]
[359595117,1746173445718,-207.4,0.00018585,2]
[359595119,1746173445729,-151.0,0.00018585,2]
[359595121,1746173445738,-681.05817304,0.00018589,2]
[359595123,1746173445747,-167.983587,0.0001866,2]
[359595125,1746173445757,-297.8899765,0.00018669,2]
[359595255,1746173447098,-29.74402132,0.00018669,2]
[359595257,1746173447107,-774.67002044,0.00018676,2]
[359595259,1746173447117,-151.0,0.00018679,2]
[359595261,1746173447126,-45.51392911,0.000187,2]
[359595593,1746173489499,2103.38853811,0.00017007,2]
[359595597,1746173638053,2500.0,0.00025,31]
[359595599,1746173757500,-150.51153262,0.00018,3]
[359595600,1746173760958,-206.36682733,0.00018,3]
[359595601,1746173764202,-175.04475709,0.00018,3]
[359595602,1746173770277,-164.91728121,0.00018,3]
[359595605,1746173779861,-182.1060237,0.00018,3]
[359595606,1746173786581,-210.27811691,0.00018,3]
[359595607,1746173792615,-151.0,0.00018,3]
[359595608,1746173797308,-198.8813985,0.00018,3]
[359595609,1746173801461,-153.31977512,0.00018,3]
[359595611,1746173805544,-534.3559804,0.00018,3]
[359595612,1746173812428,-709.43580172,0.00018,3]
[359595613,1746173836655,-172.89296064,0.00018,3]
[359595614,1746173839730,-529.44408862,0.00018,3]
[359595615,1746173844013,-161.19478468,0.00018,3]
[359595616,1746173847622,-167.05029507,0.00018,3]
[359595617,1746173850748,-263.96280926,0.00018,3]
[359595618,1746173853720,-175.6895645,0.00018,3]
[359595622,1746173857623,-161.16470176,0.00018,3]
[359595623,1746173861418,-26.04043233,0.00018,3]
[359595626,1746173953625,812.7017029,0.00017264,2]
[359595628,1746174037422,1395.408555,0.00017451,2]
[359595640,1746174368051,1833.7635422,0.000174,2]
[359595647,1746174460245,3332.5911329,0.00017493,2]
[359595669,1746174632492,-151.54516497,0.00018168,2]
[359595670,1746174632502,-300.0,0.00018257,2]
[359595671,1746174632511,-300.0,0.00018257,2]
[359595672,1746174632520,-300.0,0.00018257,2]
[359595673,1746174632530,-500.0,0.00018258,2]
[359595674,1746174632539,-500.0,0.00018258,2]
[359595675,1746174632548,-200.0,0.00018258,2]
[359595676,1746174632558,-500.0,0.00018258,2]
[359595677,1746174632567,-155.55240919,0.00018258,2]
[359595678,1746174632577,-500.0,0.00018258,2]
[359595679,1746174632586,-500.0,0.00018258,2]
[359595680,1746174632596,-500.0,0.00018258,2]
[359595681,1746174632605,-500.0,0.00018258,2]
[359595682,1746174632614,-500.0,0.00018258,2]
[359595683,1746174632623,-500.0,0.00018258,2]
[359595684,1746174632632,-500.0,0.00018258,2]
[359595685,1746174632643,-402.06937108,0.00018258,2]
[359595686,1746174632653,-487.48127851,0.00018258,2]
[359595687,1746174632663,-500.0,0.00018258,2]
[359595688,1746174632677,-500.0,0.00018258,2]
[359595689,1746174632686,-88.40788161,0.00018258,2]
[359595690,1746174632702,-411.59211839,0.00018258,2]
[359595691,1746174632714,-500.0,0.00018258,2]
[359595692,1746174632724,-216.67699727,0.00018258,2]
[359595693,1746174632735,-500.0,0.00018258,2]
[359595694,1746174632745,-500.0,0.00018258,2]
[359595695,1746174632756,-500.0,0.00018258,2]
[359595696,1746174632766,-500.0,0.00018258,2]
[359595697,1746174632776,-500.0,0.00018258,2]
[359595698,1746174632785,-500.0,0.00018258,2]
[359595699,1746174632793,-500.0,0.00018258,2]
[359595700,1746174632801,-500.0,0.00018258,2]
[359595701,1746174632809,-500.0,0.00018258,2]
[359595702,1746174632818,-500.0,0.00018258,2]
[359595703,1746174632827,-500.0,0.00018258,2]
[359595704,1746174632835,-500.0,0.00018258,2]
[359595705,1746174632846,-500.0,0.00018258,2]
[359595706,1746174632856,-500.0,0.00018258,2]
[359595707,1746174632865,-500.0,0.00018258,2]
[359595708,1746174632874,-500.0,0.00018258,2]
[359595709,1746174632883,-500.0,0.00018258,2]
[359595710,1746174632892,-500.0,0.00018258,2]
[359595711,1746174632901,-500.0,0.00018258,2]
[359595712,1746174632910,-500.0,0.00018258,2]
[359595713,1746174632919,-500.0,0.00018258,2]
[359595714,1746174632929,-500.0,0.00018258,2]
[359595715,1746174632939,-500.0,0.00018258,2]
[359595716,1746174632948,-500.0,0.00018258,2]
[359595717,1746174632958,-500.0,0.00018258,2]
[359595718,1746174632967,-500.0,0.00018258,2]
[359595719,1746174632977,-152.714681,0.00018259,2]
[359595720,1746174632987,-14583.24585541,0.0001826,2]
[359595721,1746174632998,-1040.75891475,0.0001826,2]
[359595722,1746174638611,-2103.38853811,0.0001826,2]
[359595745,1746174641317,-24.39610266,0.0001826,2]
[359596065,1746174646676,167.8246974,0.0001787,2]
[359596083,1746174646846,-20402.35058973,0.0001826,2]
[359596085,1746174646858,-20505.15999934,0.0001826,2]
[359596087,1746174646868,-5282.25309497,0.0001827,2]
[359596117,1746174811588,1603.45,0.00025,30]
[359596132,1746175013893,-262.31069834,0.00018,2]
[359596133,1746175017755,-167.65152424,0.00018,2]
[359596139,1746175207420,1200.0,0.00017999,2]
[359596153,1746175500217,4499.0494546,0.00017239,2]
[359596154,1746175507178,875.0,0.00017999,2]
[359596155,1746175523082,-167.65152424,0.00018,2]
[359596157,1746175527474,-193.95683452,0.00018,2]
[359596158,1746175532857,-187.27907844,0.00018,2]
[359596159,1746175537762,-300.0,0.00018,2]
[359596160,1746175543934,-334.93802289,0.00018,2]
[359596161,1746175545654,300.0,0.000179,2]
[359596162,1746175549101,-366.70899964,0.00018,2]
[359596164,1746175555671,-269.11077915,0.00018,2]
[359596165,1746175564411,-151.0,0.00018,2]
[359596166,1746175661945,786.81977879,0.000179,2]
[359596173,1746175803386,2051.10684304,0.00018,2]
[359596174,1746175809792,-151.0,0.00018,2]
[359596178,1746175831741,-7548.64733851,0.00018,2]
[359596179,1746175831751,-1285.68066907,0.00018044,2]
[359596180,1746175831760,-884.0,0.00018059,2]
[359596181,1746175831770,-595.56206268,0.0001806,2]
[359596182,1746175831780,-300.0,0.00018139,2]
[359596183,1746175831789,-300.0,0.00018139,2]
[359596184,1746175831799,-300.0,0.00018139,2]
[359596185,1746175831809,-1789.80999278,0.0001814,2]
[359596186,1746175831821,-837.6261697,0.0001814,2]
[359596187,1746175831833,-6217.75938125,0.0001814,2]
[359596188,1746175831845,-37931.89155827,0.0001814,2]
[359596310,1746175837747,-1317.10947413,0.0001814,2]
[359596313,1746175837759,-51905.80342387,0.0001814,2]
[359596315,1746175837769,-621.53,0.00018144,3]
[359596316,1746175837778,-876.89,0.00018146,3]
[359596317,1746175837787,-414.33,0.00018146,3]
[359596318,1746175837796,-207.16,0.00018146,3]
[359596319,1746175837806,-45297.31,0.0001815,2]
[359596320,1746175837815,-500.0,0.00018151,2]
[359596321,1746175837824,-518.10280273,0.00018151,2]
[359596322,1746175837833,-500.0,0.00018151,2]
[359596323,1746175837842,-500.0,0.00018151,2]
[359596324,1746175837851,-500.0,0.00018151,2]
[359596325,1746175837860,-500.0,0.00018151,2]
[359596326,1746175837869,-500.0,0.00018151,2]
[359596327,1746175837879,-620.0,0.00018151,2]
[359596328,1746175837888,-500.0,0.00018151,2]
[359596329,1746175837897,-500.0,0.00018151,2]
[359596330,1746175837906,-500.0,0.00018151,2]
[359596331,1746175837915,-500.0,0.00018151,2]
[359596332,1746175837924,-522.01377251,0.00018151,2]
[359596333,1746175837932,-399.97168267,0.00018151,2]
[359596334,1746175837942,-500.0,0.00018151,2]
[359596335,1746175837951,-243.75586875,0.00018151,2]
[359596336,1746175837960,-500.0,0.00018151,2]
[359596337,1746175837969,-500.0,0.00018151,2]
[359596338,1746175837978,-500.0,0.00018151,2]
[359596339,1746175837987,-500.0,0.00018151,2]
[359596340,1746175837997,-500.0,0.00018151,2]
[359596341,1746175838007,-500.0,0.00018151,2]
[359596342,1746175838016,-500.0,0.00018151,2]
[359596344,1746175838029,-500.0,0.00018151,2]
[359596346,1746175838040,-500.0,0.00018151,2]
[359596348,1746175838049,-500.0,0.00018151,2]
[359596350,1746175838059,-420.09634674,0.00018151,2]
[359596352,1746175838069,-500.0,0.00018151,2]
[359596354,1746175838079,-500.0,0.00018151,2]
[359596356,1746175838087,-500.0,0.00018151,2]
[359596358,1746175838098,-500.0,0.00018151,2]
[359596360,1746175838108,-500.0,0.00018151,2]
[359596362,1746175838118,-500.0,0.00018151,2]
[359596364,1746175838128,-500.0,0.00018151,2]
[359596366,1746175838137,-500.0,0.00018151,2]
[359596368,1746175838146,-500.0,0.00018151,2]
[359596370,1746175838155,-500.0,0.00018151,2]
[359596372,1746175838164,-500.0,0.00018151,2]
[359596374,1746175838174,-301.32306494,0.00018151,2]
[359596376,1746175838184,-500.0,0.00018151,2]
[359596378,1746175838193,-500.0,0.00018151,2]
[359596380,1746175838202,-500.0,0.00018151,2]
[359596382,1746175838212,-500.0,0.00018151,2]
[359596384,1746175838221,-500.0,0.00018151,2]
[359596386,1746175838230,-500.0,0.00018151,2]
[359596388,1746175838240,-500.0,0.00018151,2]
[359596390,1746175838249,-500.0,0.00018151,2]
[359596392,1746175838258,-138151.7124085,0.00018154,2]
[359596394,1746175838267,-108116.37719124,0.0001816,2]
[359596396,1746175838276,-595.56206265,0.00018275,2]
[359596398,1746175838285,-595.56206265,0.0001849,2]
[359596400,1746175838294,-306.0,0.000185,2]
[359596402,1746175838303,-362.0172928,0.000185,2]
[359596404,1746175838312,-362.1083304,0.000185,2]
[359596406,1746175838322,-362.1083304,0.000185,2]
[359596408,1746175838331,-301.0030363,0.000185,2]
[359596410,1746175838341,-362.1083304,0.000185,2]
[359596412,1746175838350,-314.0433565,0.000185,2]
[359596414,1746175838359,-362.0172928,0.000185,2]
[359596416,1746175838369,-724.0345856,0.000185,2]
[359596418,1746175838379,-362.0172928,0.000185,2]
[359596420,1746175838388,-207.4,0.00018585,2]
[359596422,1746175838397,-151.0,0.00018585,2]
[359596424,1746175838406,-716.8136438,0.00018691,2]
[359596426,1746175838415,-595.56206265,0.00018705,2]
[359596428,1746175838425,-151.0,0.000188,2]
[359596430,1746175838435,-1169.14,0.00018813,3]
[359596432,1746175838444,-584.57,0.00018813,3]
[359596434,1746175838454,-292.28,0.00018813,3]
[359596436,1746175838463,-2946.9,0.00018824,2]
[359596438,1746175838472,-2946.9,0.00018824,2]
[359596440,1746175838481,-2946.9,0.00018824,2]
[359596442,1746175838491,-2946.9,0.00018824,2]
[359596444,1746175838500,-2946.9,0.00018824,2]
[359596446,1746175838509,-2946.9,0.00018824,2]
[359596448,1746175838519,-554.555,0.00018871,2]
[359596450,1746175838528,-707.0,0.00018871,2]
[359596452,1746175838537,-2244.0,0.00018871,2]
[359596454,1746175838546,-150.252,0.00018871,2]
[359596456,1746175838556,-150.0,0.00018898,2]
[359596458,1746175838565,-151.0,0.000189,2]
[359596460,1746175838575,-595.56206265,0.0001892,2]
[359596462,1746175838584,-2400.0,0.00018972,2]
[359596464,1746175838593,-1886.56636,0.00018978,2]
[359596466,1746175838603,-151.0,0.00018986,2]
[359596468,1746175838613,-151.0,0.00018986,2]
[359596470,1746175838623,-28736.3994652,0.00018986,2]
[359596472,1746175838634,-39089.31272578,0.00018986,2]
[359596477,1746175838669,-29371.79136028,0.00018986,2]
[359596479,1746175838678,-272.0,0.00019,2]
[359596481,1746175838688,-94617.94527206,0.00019,2]
[359596483,1746175838697,-151.0,0.00019,2]
[359596485,1746175838706,-151.0,0.00019,2]
[359596487,1746175838716,-151.0,0.00019,2]
[359596489,1746175838725,-155.847553,0.00019,2]
[359596491,1746175838735,-151.0,0.00019,2]
[359596493,1746175838744,-151.0,0.00019,2]
[359596495,1746175838753,-151.0,0.00019,2]
[359596497,1746175838762,-151.0,0.00019,2]
[359596499,1746175838771,-151.0,0.00019,2]
[359596501,1746175838781,-394.119845,0.00019,2]
[359596503,1746175838790,-394.119845,0.00019,2]
[359596505,1746175838800,-151.0,0.00019,2]
[359596507,1746175838811,-151.0,0.00019,2]
[359596509,1746175838821,-151.0,0.00019,2]
[359596511,1746175838830,-190.058523,0.00019,2]
[359596513,1746175838840,-190.058523,0.00019,2]
[359596515,1746175838856,-155.115311,0.00019,2]
[359596517,1746175838865,-151.0,0.00019,2]
[359596519,1746175838875,-151.0,0.00019,2]
[359596521,1746175838884,-151.0,0.00019,2]
[359596523,1746175838894,-156.92686,0.00019,2]
[359596525,1746175838903,-151.0,0.00019,2]
[359596527,1746175838912,-151.0,0.00019,2]
[359596529,1746175838922,-1749.763247,0.00019,2]
[359596532,1746175838931,-1749.763247,0.00019,2]
[359596534,1746175838940,-151.0,0.00019,2]
[359596536,1746175838949,-408.486634,0.00019,2]
[359596538,1746175838958,-151.0,0.00019,2]
[359596540,1746175838967,-408.486634,0.00019,2]
[359596542,1746175838977,-151.0,0.00019,2]
[359596544,1746175838987,-152.92353,0.00019,2]
[359596546,1746175838996,-151.0,0.00019,2]
[359596547,1746175839005,-151.0,0.00019,2]
[359596549,1746175839015,-151.0,0.00019,2]
[359596551,1746175839027,-151.0,0.00019,2]
[359596553,1746175839042,-12598.98820072,0.0001902,3]
[359596556,1746175839052,-160.0,0.0001902,3]
[359596558,1746175839063,-313.59996616,0.0001902,3]
[359596560,1746175839073,-150.0,0.0001905,2]
[359596562,1746175839082,-150.207,0.00019077,2]
[359596564,1746175839091,-150.0,0.00019077,2]
[359596566,1746175839101,-178.19689196,0.00019078,2]
[359596568,1746175839111,-1285.68066905,0.00019092,2]
[359596570,1746175839121,-151.0,0.000191,2]
[359596572,1746175839130,-151.0,0.000191,2]
[359596574,1746175839139,-151.0,0.000191,2]
[359596575,1746175839148,-151.0,0.000191,2]
[359596578,1746175839158,-151.0,0.000191,2]
[359596579,1746175839167,-200000.0,0.000191,2]
[359596582,1746175839177,-5825.42230398,0.0001912,3]
[359596584,1746175839186,-841.31989156,0.0001912,3]
[359596586,1746175839196,-182.12647014,0.0001912,3]
[359596587,1746175839206,-500.0,0.0001915,2]
[359596590,1746175839215,-500.0,0.0001915,2]
[359596591,1746175839226,-647.06085817,0.0001915,2]
[359596593,1746175839235,-272.13779347,0.00019173,2]
[359596595,1746175839244,-500.0,0.00019173,2]
[359596597,1746175839254,-642.75293054,0.00019173,2]
[359596599,1746175839264,-500.0,0.00019173,2]
[359596602,1746175839273,-500.0,0.00019173,2]
[359596603,1746175839283,-501.05018493,0.00019173,2]
[359596605,1746175839292,-500.0,0.00019173,2]
[359596607,1746175839301,-443.2324125,0.00019173,2]
[359596609,1746175839311,-500.0,0.00019173,2]
[359596612,1746175839321,-500.0,0.00019173,2]
[359596614,1746175839331,-500.0,0.00019173,2]
[359596616,1746175839340,-504.29437068,0.00019173,2]
[359596617,1746175839350,-500.0,0.00019173,2]
[359596620,1746175839361,-500.43780778,0.00019173,2]
[359596623,1746175839371,-500.0,0.00019173,2]
[359596626,1746175839380,-350.31330032,0.00019173,2]
[359596629,1746175839390,-500.0,0.00019173,2]
[359596632,1746175839399,-500.0,0.00019173,2]
[359596635,1746175839410,-500.0,0.00019173,2]
[359596638,1746175839419,-500.0,0.00019173,2]
[359596641,1746175839429,-500.0,0.00019173,2]
[359596643,1746175839439,-500.0,0.00019173,2]
[359596646,1746175839449,-500.0,0.00019173,2]
[359596649,1746175839458,-500.0,0.00019173,2]
[359596652,1746175839468,-500.0,0.00019173,2]
[359596655,1746175839477,-500.0,0.00019173,2]
[359596658,1746175839487,-414.1333063,0.00019173,2]
[359596661,1746175839497,-500.0,0.00019173,2]
[359596663,1746175839506,-500.0,0.00019173,2]
[359596666,1746175839515,-504.32137075,0.00019173,2]
[359596669,1746175839525,-500.0,0.00019173,2]
[359596671,1746175839535,-553.73355407,0.00019173,2]
[359596673,1746175839546,-500.0,0.00019173,2]
[359596675,1746175839556,-500.53488474,0.00019173,2]
[359596677,1746175839566,-501.87114524,0.00019173,2]
[359596679,1746175839575,-500.0,0.00019173,2]
[359596681,1746175839585,-151.0,0.00019173,2]
[359596683,1746175839594,-151.0,0.00019173,2]
[359596685,1746175839604,-151.0,0.00019173,2]
[359596688,1746175839614,-151.0,0.00019173,2]
[359596690,1746175839623,-151.0,0.00019173,2]
[359596693,1746175839632,-1824.65,0.00019178,2]
[359596696,1746175839642,-151.0,0.00019178,2]
[359596699,1746175839651,-151.0,0.00019178,2]
[359596702,1746175839660,-151.0,0.00019178,2]
[359596705,1746175839670,-151.0,0.00019178,2]
[359596708,1746175839679,-151.0,0.00019178,2]
[359596711,1746175839690,-151.0,0.00019178,2]
[359596714,1746175839699,-151.0,0.00019178,2]
[359596717,1746175839708,-151.0,0.00019178,2]
[359596719,1746175839718,-151.0,0.00019178,2]
[359596722,1746175839727,-151.0,0.00019178,2]
[359596725,1746175839737,-151.0,0.00019178,2]
[359596728,1746175839746,-151.0,0.00019178,2]
[359596731,1746175839756,-151.0,0.00019178,2]
[359596734,1746175839765,-298.007114,0.00019178,2]
[359596737,1746175839774,-151.0,0.00019178,2]
[359596740,1746175839783,-274.783232,0.00019178,2]
[359596743,1746175839792,-151.869779,0.00019178,2]
[359596746,1746175839801,-151.0,0.00019178,2]
[359596749,1746175839810,-151.0,0.00019178,2]
[359596752,1746175839819,-151.0,0.00019178,2]
[359596755,1746175839830,-153.560098,0.00019178,2]
[359596758,1746175839838,-151.0,0.00019178,2]
[359596760,1746175839847,-151.0,0.00019178,2]
[359596763,1746175839857,-151.0,0.00019178,2]
[359596766,1746175839866,-151.0,0.00019178,2]
[359596769,1746175839875,-151.0,0.00019178,2]
[359596772,1746175839884,-213.893397,0.00019178,2]
[359596775,1746175839893,-151.0,0.00019178,2]
[359596777,1746175839902,-151.0,0.00019178,2]
[359596780,1746175839911,-151.0,0.00019178,2]
[359596784,1746175839920,-151.0,0.00019178,2]
[359596787,1746175839930,-151.0,0.00019178,2]
[359596789,1746175839939,-151.0,0.00019178,2]
[359596792,1746175839948,-151.0,0.00019178,2]
[359596795,1746175839957,-230.212903,0.00019178,2]
[359596798,1746175839967,-151.0,0.00019178,2]
[359596801,1746175839977,-151.0,0.00019178,2]
[359596804,1746175839986,-153.189897,0.00019178,2]
[359596807,1746175839995,-151.0,0.00019178,2]
[359596810,1746175840005,-151.0,0.00019178,2]
[359596813,1746175840014,-151.0,0.00019178,2]
[359596816,1746175840024,-151.0,0.00019178,2]
[359596819,1746175840036,-151.0,0.00019178,2]
[359596822,1746175840045,-151.0,0.00019178,2]
[359596825,1746175840054,-151.0,0.00019178,2]
[359596828,1746175840064,-151.0,0.00019178,2]
[359596830,1746175840075,-151.0,0.00019178,2]
[359596833,1746175840084,-151.0,0.00019178,2]
[359596836,1746175840094,-151.0,0.00019178,2]
[359596839,1746175840103,-151.0,0.00019178,2]
[359596842,1746175840113,-151.0,0.00019178,2]